bitfinex/quotes_SOLUSD_20250413
["timestamp","ask_amount","ask_price","bid_price","bid_amount"]
[1744565307883,18.64964886,131.1,131.07,39.5204789]
[1744565308254,18.64964886,131.1,131.06,39.5204789]
[1744565309081,18.64964886,131.1,131.06,47.1503789]
[1744565309496,26.27754886,131.1,131.06,39.5204789]
[1744565309978,18.64964886,131.1,131.07,39.5204789]
[1744565310157,18.64964886,131.1,131.06,7.63]
[1744565310158,7.6268,131.12,131.08,39.5204789]
[1744565310353,7.6255,131.14,131.1,39.5204789]
[1744565310580,19.07613357,131.13,131.08,39.5204789]
[1744565310792,18.64964886,131.11,131.07,39.5204789]
[1744565311082,18.64964886,131.11,131.06,7.63]
[1744565311288,26.27674886,131.11,131.06,39.5204789]
[1744565311757,65.79722776,131.11,131.06,39.5204789]
[1744565311960,26.27674886,131.11,131.06,39.5204789]
[1744565312282,18.64964886,131.08,131.03,39.5204789]
[1744565313265,7.6295,131.07,131.03,39.5204789]
[1744565313892,18.64964886,131.06,131.01,0.03]
[1744565314188,58.17012776,131.06,131.01,39.5504789]
[1744565314382,18.64964886,131.06,131.01,39.5504789]
[1744565315369,7.6306,131.05,131.01,39.5504789]
[1744565315978,7.6306,131.05,131.01,0.03]
[1744565316287,8.126,131.07,131.03,39.5204789]
[1744565316787,8.126,131.07,131.04,39.5204789]
[1744565317487,18.64964886,131.07,131.04,47.1515789]
[1744565318069,82.9,131.09,131.05,39.5204789]
[1744565318271,18.64964886,131.08,131.04,7.6311]
[1744565318474,18.64964886,131.08,131.04,47.1515789]
[1744565319696,18.64964886,131.08,131.04,7.6311]
[1744565319878,39.5204789,131.07,131.02,47.1528789]
[1744565320990,47.1500789,131.07,131.02,47.1528789]
[1744565321194,18.64964886,131.08,131.04,26.07788358]
[1744565321899,52.35643244,131.08,131.02,33.71028358]
[1744565322069,18.64964886,131.06,131.02,26.07788358]
[1744565323195,26.27974886,131.06,131.01,7.6627]
[1744565323493,26.27974886,131.06,131.02,26.07788358]
[1744565323874,18.64964886,131.06,131.03,26.07788358]
[1744565324464,18.64964886,131.06,131.02,26.07788358]
[1744565326085,26.27984886,131.06,131.02,26.07788358]
[1744565326466,18.64964886,131.04,131.01,0.03]
[1744565326673,33.70808358,131.06,131.01,26.10788358]
[1744565326868,18.64964886,131.08,131.03,26.07788358]
[1744565327089,7.6277,131.1,131.04,26.07788358]
[1744565327302,26.0,131.07,131.04,26.07788358]
[1744565327605,15.7534,131.11,131.06,26.07788358]
[1744565327898,18.64964886,131.1,131.06,26.07788358]
[1744565328464,44.72753244,131.1,131.05,26.07788358]
[1744565329297,18.64964886,131.1,131.04,7.631]
[1744565329484,26.27784886,131.1,131.06,26.07788358]
[1744565329679,52.35573244,131.1,131.05,26.07788358]
[1744565331682,26.50436829,131.09,131.04,26.07788358]
[1744565331891,26.50436829,131.09,131.03,26.07788358]
[1744565332091,18.64964886,131.08,131.03,26.07788358]
[1744565332281,18.64964886,131.08,131.04,26.07788358]
[1744565332680,18.64964886,131.08,131.01,10.73]
[1744565332681,18.64964886,131.07,131.03,26.07788358]
[1744565333490,26.27914886,131.07,131.03,26.07788358]
[1744565335201,18.64964886,131.05,131.01,0.03]
[1744565335500,7.6312,131.04,131.01,26.10788358]
[1744565338419,18.64964886,131.03,131.01,26.10788358]
[1744565339104,18.64964886,131.03,131.01,0.03]
[1744565340224,26.28164886,131.03,131.01,0.03]
[1744565340897,0.42648471,131.06,131.02,26.07788358]
[1744565341234,26.0,131.05,131.02,26.07788358]
[1744565341392,18.79181043,131.07,131.04,26.07788358]
[1744565341591,26.27914886,131.07,131.04,26.07788358]
[1744565341804,26.27914886,131.07,131.03,26.07788358]
[1744565342001,26.27914886,131.07,131.01,0.03]
[1744565342002,18.64964886,131.04,131.01,0.03]
[1744565342188,18.64964886,131.04,131.02,26.07788358]
[1744565342391,0.42648471,131.03,131.01,0.03]
[1744565342604,25.16674886,131.04,131.01,0.03]
[1744565342799,25.16674886,131.04,131.01,26.10788358]
[1744565343395,6.5171,131.04,131.01,0.03]
[1744565344121,18.64964886,131.02,131.01,0.03]
[1744565344993,7.6318,131.03,131.01,0.03]
[1744565345197,18.64964886,131.02,131.01,0.03]
[1744565346518,26.28204886,131.02,131.01,0.03]
[1744565346722,52.78641715,131.02,131.01,0.03]
[1744565346903,0.42648471,131.01,131.0,0.03]
[1744565347111,0.42648471,131.01,130.92,17.958]
[1744565347112,0.42648471,130.99,130.92,17.958]
[1744565347435,0.42648471,130.99,130.9,25.7608]
[1744565347436,16.32411239,130.95,130.87,10.32]
[1744565347601,16.32411239,130.95,130.88,7.6405]
[1744565347810,34.97376125,130.96,130.91,16.32411239]
[1744565348208,1.5486,130.95,130.88,7.6405]
[1744565348527,33.639,130.91,130.87,16.35411239]
[1744565348733,7.637,130.94,130.9,16.32411239]
[1744565348925,7.637,130.94,130.91,16.32411239]
[1744565349126,7.637,130.94,130.91,26.12749776]
[1744565349334,18.64964886,130.93,130.89,26.12749776]
[1744565350238,7.6382,130.92,130.89,26.12749776]
[1744565350423,18.64964886,130.93,130.9,26.12749776]
[1744565351103,18.64964886,130.93,130.88,7.6405]
[1744565351424,26.28734886,130.93,130.9,26.12749776]
[1744565351922,26.28734886,130.93,130.87,0.03]
[1744565352101,26.28734886,130.93,130.9,26.12749776]
[1744565353012,18.64964886,130.96,130.92,26.12749776]
[1744565353203,18.64964886,130.96,130.93,26.12749776]
[1744565353617,6.5171,130.97,130.94,26.12749776]
[1744565353811,14.1524,130.97,130.93,26.12749776]
[1744565354023,14.1524,130.97,130.89,0.14216157]
[1744565354024,14.1524,130.97,130.94,26.12749776]
[1744565355004,6.5171,130.97,130.95,26.12749776]
[1744565356202,14.1525,130.97,130.94,26.12749776]
[1744565356827,6.5171,131.01,130.96,26.12749776]
[1744565357126,6.0971,131.05,131.0,26.12749776]
[1744565357333,1.5122,131.07,131.04,26.12749776]
[1744565357629,1.5122,131.07,131.06,26.12749776]
[1744565357924,13.7255,131.09,131.05,26.12749776]
[1744565358539,18.64964886,131.08,131.05,26.12749776]
[1744565358711,26.0,131.08,131.07,26.12749776]
[1744565358910,26.0,131.08,131.05,26.12749776]
[1744565359317,26.0,131.08,131.06,26.12749776]
[1744565359513,7.6723,131.12,131.07,26.12749776]
[1744565359733,1.5752,131.12,131.1,26.12749776]
[1744565360029,0.063,131.12,131.08,26.12749776]
[1744565360214,0.063,131.12,131.04,52.83659776]
[1744565360215,0.063,131.12,131.09,26.12749776]
[1744565360732,44.77714662,131.11,131.06,26.12749776]
[1744565360910,18.64964886,131.09,131.05,26.12749776]
[1744565361318,26.0,131.09,131.07,26.12749776]
[1744565361527,18.64964886,131.1,131.07,26.12749776]
[1744565361712,0.063,131.12,131.09,26.12749776]
[1744565361912,0.063,131.12,131.1,26.12749776]
[1744565362113,0.063,131.12,131.11,26.12749776]
[1744565362412,0.063,131.12,131.06,7.63]
[1744565362936,0.063,131.12,131.1,26.12749776]
[1744565363134,0.063,131.12,131.06,7.63]
[1744565363345,18.71264886,131.12,131.08,26.12749776]
[1744565363516,0.063,131.12,131.08,26.12749776]
[1744565364525,18.64964886,131.11,131.07,26.12749776]
[1744565364837,18.71264886,131.12,131.07,26.12749776]
[1744565365241,18.71264886,131.12,131.06,7.6299]
[1744565365461,18.71264886,131.12,131.07,26.12749776]
[1744565365627,18.71264886,131.12,131.07,33.75679776]
[1744565365939,18.71264886,131.12,131.08,26.12749776]
[1744565367227,26.33934886,131.12,131.08,26.12749776]
[1744565367937,18.71264886,131.12,131.08,26.12749776]
[1744565368142,18.71264886,131.12,131.08,33.75629776]
[1744565368724,26.33924886,131.12,131.07,26.12749776]
[1744565368941,18.71264886,131.12,131.05,26.7072]
[1744565369127,18.71264886,131.12,131.08,26.12749776]
[1744565370035,18.71264886,131.12,131.05,26.7072]
[1744565370036,18.71264886,131.12,131.07,26.12749776]
[1744565370944,18.71264886,131.12,131.07,33.75639776]
[1744565371647,7.6898,131.12,131.07,33.75639776]
[1744565371944,26.33944886,131.12,131.07,33.75639776]
[1744565372149,18.71264886,131.12,131.08,26.12749776]
[1744565372532,0.063,131.12,131.09,26.12749776]
[1744565372939,0.063,131.12,131.08,33.75599776]
[1744565373142,0.063,131.12,131.11,26.12749776]
[1744565374457,0.063,131.12,131.11,33.75459776]
[1744565375220,0.063,131.12,131.11,33.89675933]
[1744565375647,0.063,131.12,131.11,34.18108247]
[1744565376847,0.063,131.12,131.11,60.30858023]
[1744565377446,0.063,131.12,131.11,34.18108247]
[1744565378543,0.063,131.12,131.1,9.62]
[1744565378749,0.063,131.12,131.07,26.12749776]
[1744565379138,26.19049776,131.12,131.06,33.75749776]
[1744565380230,26.33974886,131.12,131.07,26.12749776]
[1744565380431,52.46724662,131.12,131.07,26.12749776]
[1744565380628,6.6243,131.11,131.07,26.12749776]
[1744565382544,40.37929776,131.11,131.06,26.12749776]
[1744565384551,40.37929776,131.11,131.05,17.2501]
[1744565384762,18.64964886,131.07,131.02,26.12749776]
[1744565384950,18.64964886,131.07,131.03,26.12749776]
[1744565385145,97.57828471,131.11,131.04,26.12749776]
[1744565385326,26.0,131.08,131.05,26.12749776]
[1744565385726,26.0,131.08,131.03,26.12749776]
[1744565385727,18.64964886,131.07,131.03,26.12749776]
[1744565385951,18.64964886,131.07,131.02,26.12749776]
[1744565386126,44.77714662,131.07,131.02,26.12749776]
[1744565386937,7.63,131.06,131.02,26.12749776]
[1744565387138,7.63,131.06,131.03,26.12749776]
[1744565387340,26.0,131.08,131.05,26.12749776]
[1744565387733,59.75639776,131.08,131.03,26.12749776]
[1744565388254,26.12749776,131.07,131.02,26.12749776]
[1744565388430,18.64964886,131.06,131.01,26.12749776]
[1744565388833,26.12749776,131.07,131.01,26.12749776]
[1744565389049,26.27964886,131.06,131.01,26.12749776]
[1744565389641,26.27964886,131.06,131.0,26.12749776]
[1744565389642,26.12749776,131.05,131.0,26.12749776]
[1744565390237,26.27964886,131.06,131.01,26.12749776]
[1744565390436,52.40714662,131.06,131.01,26.12749776]
[1744565390960,26.27964886,131.06,131.02,26.12749776]
[1744565391257,26.27924886,131.07,131.03,26.12749776]
[1744565392053,52.50274662,131.04,130.99,26.12749776]
[1744565392280,26.37524886,131.04,130.99,26.12749776]
[1744565392455,26.37524886,131.04,131.0,26.12749776]
[1744565392653,7.6318,131.03,131.0,26.12749776]
[1744565392852,7.6318,131.03,130.99,26.12749776]
[1744565395364,7.6318,131.03,130.98,7.6345]
[1744565395365,26.37524886,131.04,131.01,26.12749776]
[1744565395539,7.6295,131.07,131.03,26.12749776]
[1744565395739,18.64964886,131.06,131.03,26.12749776]
[1744565395945,18.64964886,131.06,130.98,7.6345]
[1744565395946,98.2546,131.08,131.04,26.12749776]
[1744565396750,124.38209776,131.08,131.03,26.12749776]
[1744565397140,114.55453093,131.08,131.03,16.29993093]
[1744565397338,114.55453093,131.08,131.03,23.93163093]
[1744565397554,114.55453093,131.08,131.03,16.29993093]
[1744565398140,98.2546,131.08,131.03,16.29993093]
[1744565398835,98.2546,131.08,131.04,16.29993093]
[1744565399253,15.3546,131.08,131.04,16.29993093]
[1744565399836,6.0005,131.11,131.07,16.29993093]
[1744565400861,34.94957979,131.1,131.05,16.29993093]
[1744565401063,34.94957979,131.1,131.04,7.6311]
[1744565401237,22.30043093,131.11,131.06,23.92983093]
[1744565401438,13.6277,131.11,131.06,7.6299]
[1744565401752,6.0005,131.11,131.08,16.29993093]
[1744565401956,6.0005,131.11,131.07,16.29993093]
[1744565403241,13.6277,131.11,131.07,16.29993093]
[1744565403860,13.6277,131.11,131.05,7.6304]
[1744565404052,18.64964886,131.1,131.06,16.29993093]
[1744565404646,34.94957979,131.1,131.02,9.62]
[1744565404866,18.64964886,131.1,131.05,16.29993093]
[1744565405355,26.27764886,131.1,131.05,23.93053093]
[1744565405659,16.29993093,131.09,131.04,16.29993093]
[1744565405870,26.27764886,131.1,131.06,16.29993093]
[1744565406679,26.27764886,131.1,131.05,16.29993093]
[1744565406970,42.57757979,131.1,131.05,16.29993093]
[1744565407278,26.27764886,131.1,131.05,16.29993093]
[1744565407964,42.57757979,131.1,131.05,16.29993093]
[1744565409362,42.57757979,131.1,131.04,16.29993093]
[1744565409770,42.57757979,131.1,131.05,16.29993093]
[1744565410067,26.27764886,131.1,131.05,16.29993093]
[1744565410255,42.57757979,131.1,131.05,16.29993093]
[1744565410848,6.0005,131.11,131.07,16.29993093]
[1744565411047,6.0005,131.11,131.08,16.29993093]
[1744565411767,1.7274,131.12,131.1,16.29993093]
[1744565411952,0.063,131.12,131.1,16.29993093]
[1744565413070,0.063,131.12,131.08,16.29993093]
[1744565414167,0.063,131.12,131.09,16.29993093]
[1744565414572,0.063,131.12,131.1,16.29993093]
[1744565414746,0.063,131.12,131.08,16.29993093]
[1744565414953,0.063,131.12,131.09,16.29993093]
[1744565415372,0.063,131.12,131.1,16.29993093]
[1744565415952,0.063,131.12,131.07,26.7031]
[1744565416153,0.063,131.12,131.1,16.29993093]
[1744565416452,0.063,131.12,131.07,7.6292]
[1744565416664,0.063,131.12,131.08,16.29993093]
[1744565417348,0.063,131.12,131.09,16.29993093]
[1744565418473,0.063,131.12,131.08,16.29993093]
[1744565419172,0.063,131.12,131.09,16.29993093]
[1744565420375,0.063,131.12,131.08,23.92853093]
[1744565420771,16.36293093,131.12,131.07,16.29993093]
[1744565421679,0.063,131.12,131.07,16.29993093]
[1744565421856,16.36293093,131.12,131.07,16.29993093]
[1744565422859,26.0,131.1,131.05,16.29993093]
[1744565423197,0.0001,131.22,131.19,4.7539]
[1744565423492,11.56044286,131.22,131.21,16.29993093]
[1744565423672,11.56044286,131.22,131.14,9.58]
[1744565423857,16.29993093,131.2,131.1,0.28432314]
[1744565424061,16.29993093,131.2,131.11,33.81679118]
[1744565424392,37.83089172,131.22,131.16,16.29993093]
[1744565424585,54.13082265,131.22,131.16,16.29993093]
[1744565424790,16.29993093,131.2,131.14,16.29993093]
[1744565425277,16.29993093,131.2,131.15,2.74850612]
[1744565425685,48.32353093,131.19,131.15,2.74850612]
[1744565425998,6.0236,131.19,131.16,16.29993093]
[1744565426199,6.0236,131.19,131.11,0.14216157]
[1744565426200,22.32353093,131.19,131.13,16.29993093]
[1744565426372,16.29993093,131.18,131.12,16.29993093]
[1744565426966,16.29993093,131.18,131.13,2.7495706]
[1744565427166,16.29993093,131.17,131.13,2.7495706]
[1744565427394,16.29993093,131.17,131.11,16.29993093]
[1744565427994,16.29993093,131.17,131.09,0.42648471]
[1744565427995,23.92343093,131.18,131.12,16.29993093]
[1744565428366,6.0236,131.19,131.17,16.29993093]
[1744565428566,6.0236,131.19,131.18,16.29993093]
[1744565428788,1.6213,131.2,131.12,16.72641564]
[1744565429001,1.6213,131.2,131.18,16.29993093]
[1744565429503,0.0001,131.22,131.18,16.29993093]
[1744565429808,0.0001,131.22,131.15,7.6246]
[1744565429809,0.0001,131.22,131.21,16.29993093]
[1744565429990,0.063,131.24,131.23,26.42648471]
[1744565430164,0.063,131.25,131.24,0.42648471]
[1744565430368,0.063,131.26,131.24,16.72641564]
[1744565430568,0.063,131.32,131.26,16.29993093]
[1744565430769,0.063,131.32,131.26,19.03335423]
[1744565431263,0.063,131.32,131.27,18.79181043]
[1744565431462,0.063,131.32,131.31,25.97119522]
[1744565432566,0.063,131.32,131.3,25.97119522]
[1744565432770,0.063,131.32,131.31,25.97119522]
[1744565434909,0.063,131.32,131.28,17.1971]
[1744565435074,0.063,131.32,131.3,25.97119522]
[1744565435275,0.063,131.32,131.31,25.97119522]
[1744565436378,0.063,131.32,131.31,26.39767993]
[1744565437274,0.063,131.32,131.31,25.97119522]
[1744565438777,0.063,131.32,131.31,34.01317993]
[1744565439397,0.063,131.32,131.31,26.39767993]
[1744565439803,0.063,131.32,131.31,34.01317993]
[1744565440177,0.063,131.32,131.31,25.97119522]
[1744565441087,0.063,131.32,131.28,9.58]
[1744565441390,0.063,131.32,131.29,25.97119522]
[1744565441701,7.6155,131.31,131.28,9.58]
[1744565443298,7.6155,131.31,131.28,35.55119522]
[1744565443696,7.6781,131.32,131.28,35.55119522]
[1744565444185,7.6781,131.32,131.28,9.58]
[1744565444398,7.6781,131.32,131.28,35.55119522]
[1744565444701,7.6781,131.32,131.29,25.97119522]
[1744565445909,0.063,131.32,131.31,45.04732879]
[1744565446100,0.063,131.35,131.32,19.07613357]
[1744565446410,0.063,131.35,131.33,2.68729004]
[1744565446594,7.6763,131.35,131.33,2.68729004]
[1744565447499,7.6763,131.35,131.31,25.97119522]
[1744565447889,7.6763,131.35,131.3,25.97119522]
[1744565448812,7.6763,131.35,131.31,25.97119522]
[1744565449014,0.063,131.35,131.34,25.97119522]
[1744565450221,0.063,131.35,131.34,34.01147993]
[1744565450507,0.063,131.35,131.34,36.69705429]
[1744565451394,0.063,131.35,131.34,28.65676958]
[1744565451596,0.063,131.35,131.34,36.27056958]
[1744565452417,0.063,131.35,131.34,2.68557436]
[1744565452925,0.063,131.35,131.33,9.56]
[1744565453090,0.063,131.35,131.31,25.97119522]
[1744565453287,44.68384408,131.35,131.3,25.97119522]
[1744565453506,0.063,131.35,131.31,25.97119522]
[1744565454317,25.97119522,131.34,131.28,9.56]
[1744565454520,25.97119522,131.34,131.29,25.97119522]
[1744565454727,25.97119522,131.34,131.24,37.69864886]
[1744565454728,25.97119522,131.3,131.24,25.97119522]
[1744565454893,25.97119522,131.28,131.23,25.97119522]
[1744565455095,25.97119522,131.28,131.22,35.53119522]
[1744565455409,25.97119522,131.28,131.23,2.70166032]
[1744565455894,25.97119522,131.27,131.23,2.70166032]
[1744565456412,25.97119522,131.26,131.22,9.56]
[1744565456726,25.97119522,131.27,131.22,35.53119522]
[1744565458525,25.97119522,131.25,131.22,9.56]
[1744565458731,25.97119522,131.25,131.2,25.97119522]
[1744565459198,18.64964886,131.25,131.2,25.97119522]
[1744565459590,44.62084408,131.25,131.2,25.97119522]
[1744565459793,44.62084408,131.25,131.19,25.97119522]
[1744565460035,18.64964886,131.25,131.2,25.97119522]
[1744565460326,52.23994408,131.25,131.2,25.97119522]
[1744565460539,108.87119522,131.29,131.23,25.97119522]
[1744565460830,25.97119522,131.26,131.21,25.97119522]
[1744565462103,33.58969522,131.26,131.21,33.59239522]
[1744565462315,33.58969522,131.26,131.21,25.97119522]
[1744565462517,33.58969522,131.26,131.18,0.42648471]
[1744565462518,25.97119522,131.24,131.17,9.56]
[1744565462722,25.97119522,131.22,131.17,35.53119522]
[1744565462920,25.97119522,131.2,131.15,7.6547]
[1744565463122,25.97119522,131.2,131.17,8.05]
[1744565463315,25.97119522,131.19,131.16,2.72027333]
[1744565463513,25.97119522,131.18,131.16,2.72027333]
[1744565463821,25.97119522,131.17,131.16,2.72027333]
[1744565464021,33.59499522,131.17,131.15,0.03]
[1744565464409,51.05244408,131.16,131.15,0.03]
[1744565465438,6.4316,131.16,131.15,0.03]
[1744565466010,14.0558,131.16,131.15,0.03]
[1744565466217,40.02699522,131.16,131.15,0.03]
[1744565466515,58.67664408,131.16,131.15,0.03]
[1744565466709,59.10312879,131.16,131.15,0.03]
[1744565466924,6.4316,131.16,131.15,0.03]
[1744565468210,58.67664408,131.16,131.15,0.03]
[1744565468417,59.10312879,131.16,131.15,0.03]
[1744565468619,59.10312879,131.16,131.13,0.03]
[1744565468620,25.97119522,131.14,131.13,0.03]
[1744565468934,27.59929522,131.14,131.13,0.03]
[1744565469625,46.67542879,131.14,131.13,0.03]
[1744565469836,18.64964886,131.13,131.09,0.03]
[1744565470009,25.97119522,131.1,131.09,0.03]
[1744565470825,33.59879522,131.11,131.09,0.03]
[1744565471019,18.64964886,131.1,131.09,0.03]
[1744565471225,44.62084408,131.1,131.09,0.03]
[1744565471413,45.04732879,131.1,131.09,0.03]
[1744565471616,44.64964886,131.08,131.07,0.03]
[1744565471916,70.62084408,131.08,131.07,0.03]
[1744565472350,84.83272879,131.08,131.07,0.03]
[1744565472633,18.79181043,131.07,131.01,0.03]
[1744565472839,25.97119522,131.04,131.01,0.03]
[1744565473039,32.1565,131.08,131.03,25.97119522]
[1744565473538,32.1565,131.08,131.04,25.97119522]
[1744565473742,58.12769522,131.08,131.03,26.00119522]
[1744565473915,44.62084408,131.07,131.03,0.03]
[1744565474340,25.97119522,131.05,131.03,0.03]
[1744565475232,25.97119522,131.06,131.03,0.03]
[1744565475648,26.27924886,131.07,131.03,0.03]
[1744565475936,25.97119522,131.06,131.03,0.03]
[1744565476515,25.97119522,131.04,131.03,0.03]
[1744565476748,25.97119522,131.05,131.03,0.03]
[1744565477039,25.97119522,131.06,131.03,0.03]
[1744565477535,25.97119522,131.04,131.03,0.03]
[1744565477742,44.62084408,131.04,131.03,0.03]
[1744565478540,52.25204408,131.04,131.03,0.03]
[1744565480130,52.67852879,131.04,131.03,0.03]
[1744565480626,52.70853357,131.02,131.01,0.03]
[1744565480826,26.0,130.98,130.94,0.03]
[1744565481027,51.97119522,130.98,130.94,0.03]
[1744565481229,18.64964886,130.97,130.94,0.03]
[1744565481434,26.0,130.98,130.94,26.00119522]
[1744565481824,26.0,130.98,130.94,0.03]
[1744565482028,26.0,130.98,130.94,26.00119522]
[1744565482237,18.64964886,130.97,130.94,0.03]
[1744565482639,26.28524886,130.97,130.94,0.03]
[1744565482814,52.25644408,130.97,130.94,0.03]
[1744565483015,25.97119522,130.96,130.94,0.03]
[1744565483233,52.25644408,130.97,130.94,0.03]
[1744565483740,26.28524886,130.97,130.94,0.03]
[1744565484043,52.25644408,130.97,130.94,0.03]
[1744565484340,25.97119522,130.95,130.94,0.03]
[1744565484531,52.25734408,130.95,130.94,0.03]
[1744565485324,52.68382879,130.95,130.94,0.03]
[1744565485523,32.44264886,130.95,130.94,0.03]
[1744565486140,58.41384408,130.95,130.94,0.03]
[1744565486339,58.84032879,130.95,130.94,0.03]
[1744565488744,32.86913357,130.95,130.94,0.03]
[1744565488926,58.84032879,130.95,130.94,0.03]
[1744565490723,26.0,130.92,130.89,0.03]
[1744565491026,51.97119522,130.92,130.89,0.03]
[1744565491230,26.0,130.92,130.89,0.03]
[1744565491435,51.97119522,130.92,130.89,0.03]
[1744565491641,26.0,130.92,130.89,0.03]
[1744565491831,18.64964886,130.94,130.89,26.00119522]
[1744565492156,18.64964886,130.94,130.89,7.6699]
[1744565492338,44.62084408,130.94,130.89,33.64109522]
[1744565493130,18.64964886,130.94,130.89,33.64109522]
[1744565493355,26.28674886,130.94,130.89,33.64109522]
[1744565493645,24.80614886,130.95,130.91,25.97119522]
[1744565493841,50.77734408,130.95,130.9,25.97119522]
[1744565494036,6.4443,131.03,130.94,25.97119522]
[1744565494239,6.4443,131.03,130.99,25.97119522]
[1744565494240,14.0761,131.03,130.99,25.97119522]
[1744565494452,14.0761,131.03,131.0,25.97119522]
[1744565494858,14.0761,131.03,130.92,18.64964886]
[1744565494859,6.4443,131.03,130.98,25.97119522]
[1744565495037,18.64964886,131.02,130.99,25.97119522]
[1744565495238,6.4443,131.03,130.99,25.97119522]
[1744565495667,6.4443,131.03,130.99,33.60519522]
[1744565495853,14.0761,131.03,130.99,25.97119522]
[1744565496542,44.62084408,131.02,130.97,25.97119522]
[1744565496741,25.97119522,131.01,130.96,25.97119522]
[1744565497141,33.60469522,131.01,130.94,7.637]
[1744565497342,7.6335,131.01,130.97,25.97119522]
[1744565497760,52.25344408,131.02,130.97,25.97119522]
[1744565498060,0.063,131.01,130.98,25.97119522]
[1744565498236,0.063,131.01,130.99,25.97119522]
[1744565498641,0.063,131.01,130.98,25.97119522]
[1744565499451,18.64964886,131.0,130.96,25.97119522]
[1744565499645,44.62084408,131.0,130.95,25.97119522]
[1744565499964,25.97119522,130.98,130.93,33.60879522]
[1744565500149,25.97119522,130.99,130.94,25.97119522]
[1744565500348,25.97119522,130.99,130.93,7.6376]
[1744565500349,44.62084408,131.0,130.95,25.97119522]
[1744565500661,18.64964886,131.0,130.96,25.97119522]
[1744565501240,26.0,130.99,130.96,33.60669522]
[1744565501442,26.0,130.99,130.96,25.97119522]
[1744565501963,26.0,130.99,130.95,25.97119522]
[1744565502549,26.0,130.99,130.96,25.97119522]
[1744565503041,26.0,130.99,130.95,25.97119522]
[1744565503358,0.063,131.01,130.98,33.60589522]
[1744565503559,0.063,131.01,131.0,25.97119522]
[1744565504565,0.063,131.01,130.99,25.97119522]
[1744565505066,0.063,131.01,131.0,4.67742685]
[1744565505639,0.063,131.01,131.0,38.28212207]
[1744565506347,0.063,131.01,131.0,30.64862207]
[1744565506560,0.063,131.01,131.0,4.67742685]
[1744565509955,0.063,131.01,131.0,1.94613217]
[1744565510457,0.063,131.01,131.0,35.55082739]
[1744565510866,0.063,131.01,131.0,33.60469522]
[1744565511365,0.063,131.01,131.0,28.71926272]
[1744565511567,0.063,131.01,131.0,2.7480675]
[1744565511772,0.063,131.01,131.0,36.35276272]
[1744565512070,0.063,131.01,131.0,2.7480675]
[1744565517287,0.063,131.01,130.97,43.16629522]
[1744565517465,25.97119522,131.0,130.94,33.60819522]
[1744565517672,0.063,131.01,130.93,7.6375]
[1744565517673,44.62084408,130.98,130.93,7.6375]
[1744565517857,44.62084408,130.98,130.95,2.7642037]
[1744565518061,18.64964886,130.98,130.95,2.7642037]
[1744565518586,18.64964886,130.98,130.94,27.87950457]
[1744565519080,7.6347,130.99,130.95,25.97119522]
[1744565519259,18.64964886,130.98,130.95,27.9405877]
[1744565519985,18.64964886,130.98,130.95,1.96939248]
[1744565520474,18.64964886,130.98,130.95,27.9405877]
[1744565520777,18.64964886,130.98,130.96,2.76613872]
[1744565521472,26.28444886,130.98,130.96,2.76613872]
[1744565521779,26.28444886,130.98,130.94,33.60799522]
[1744565522681,18.64964886,130.98,130.94,33.60799522]
[1744565523181,26.28454886,130.98,130.94,25.97119522]
[1744565523360,52.25574408,130.98,130.92,43.16929522]
[1744565523561,25.97119522,130.97,130.92,43.16929522]
[1744565523774,18.64964886,130.96,130.92,25.97119522]
[1744565523977,44.62084408,130.95,130.9,102.59766279]
[1744565524168,32.49739522,130.94,130.9,68.98736757]
[1744565524679,40.13489522,130.94,130.9,68.98736757]
[1744565524867,44.62084408,130.93,130.9,68.98736757]
[1744565525266,18.64964886,130.93,130.9,68.98736757]
[1744565525663,6.5262,130.94,130.9,94.95856279]
[1744565525872,1.5759,130.95,130.92,25.97119522]
[1744565526069,14.1611,130.98,130.94,25.97119522]
[1744565526272,6.5262,130.98,130.95,25.97119522]
[1744565526470,14.161,130.98,130.94,25.97119522]
[1744565526684,18.64964886,130.97,130.92,7.6378]
[1744565526887,18.64964886,130.97,130.93,25.97119522]
[1744565527073,6.5262,130.98,130.95,25.97119522]
[1744565527460,6.5262,130.98,130.92,7.6378]
[1744565527662,6.5262,130.98,130.94,25.97119522]